{"text_format":"2","workbook":"xlsx","n_sheets":10,"sheets":["RESUMO MODULO TOTAL","CRONOGRAMA TOTAL","RESUMO MODULO MINIMO","CRONOGRAMA MINIMO","Mob e Desmob","SERVIÇOS PRELI","Projeto Executivo","Ensaios","CPU CODEVASF","CPU SINAPI"],"not_rendered":{"charts":0,"images":1,"macros":0,"external_links":7,"defined_names":1594,"comments":1,"pivot_tables":0},"unopened":[],"bounds":{"document_bytes":16777216,"sheet_cells":100000,"run_cost":"one","rows_first":2000,"rows_last":500,"rows_between":2000,"halvings":0,"cell_chars":16384,"cell_head_chars":4096},"cells_cut":0,"cells_raw":0,"read":"whole","date_system":"1900"}

{"sheet":"RESUMO MODULO TOTAL","index":0,"n_rows":33,"n_cols":12,"rows_kept":33,"cut":false,"hidden":false,"merged":[[29,3,29,6],[31,3,31,6],[32,0,32,9],[20,3,20,6],[21,3,21,6],[22,3,22,6],[23,3,23,6],[25,3,25,6],[27,3,27,6],[14,3,14,6],[15,3,15,6],[16,3,16,6],[17,3,17,6],[18,3,18,6],[19,3,19,6],[9,3,9,6],[10,3,10,6],[11,3,11,6],[12,3,12,6],[13,3,13,6],[1,0,3,11],[4,0,4,11],[5,0,8,0],[5,1,8,1],[5,2,8,2],[5,3,8,6],[6,8,7,8],[6,11,7,11]]}
[{"$f":"'RESUMO MODULO MINIMO'!A1","v":"EXECUÇÃO DE SERVIÇOS DE IMPLANTAÇÃO DE PAVIMENTAÇÃO EM BLOCO DE CONCRETO INTERTRAVADO, EM VIAS URBANAS E RURAIS DE MUNÍCIPIOS DIVERSOS INSERIDOS NA ÁREA DE ATUAÇÃO DA CODEVASF, NO ESTADO DO GOIÁS"}]
[]
[]
[]
[{"$f":"A1","v":"EXECUÇÃO DE SERVIÇOS DE IMPLANTAÇÃO DE PAVIMENTAÇÃO EM BLOCO DE CONCRETO INTERTRAVADO, EM VIAS URBANAS E RURAIS DE MUNÍCIPIOS DIVERSOS INSERIDOS NA ÁREA DE ATUAÇÃO DA CODEVASF, NO ESTADO DO GOIÁS"}]
["ITEM","ORIGEM\nCOMPOSIÇÃO","CÓDIGO\nCOMPOSIÇÃO","DISCRIMINAÇÃO DOS SERVIÇOS",null,null,null,"BDI %:",null,"R$/m²",null,"PERCENTUAL DE RISCO"]
[{"$nulls":7},"Total de m²","Encargos Sociais:","Horista","Mensalista"]
[{"$nulls":7},{"$f":"I15","v":546000},null,{"$f":"'[1]ENC. SOCIAIS'!$E$51","v":114.7}]
[{"$nulls":7},"UND","QTDE.","PREÇO UNITÁRIO COM BDI COM RISCO 0 (R$)","PREÇO TOTAL COM BDI RISCO 0 (R$)","PREÇO TOTAL COM CONTINGÊNCIA (R$)"]
[null,null,null,"MOBILIZAÇÃO"]
[1,"Codevasf","Composição Própria","Implantação da Obra",null,null,null,"Módulo",{"$f":"'[1]MC MODULO'!N17","v":78}]
[2,"Codevasf","Composição Própria","Administração da Obra",null,null,null,"Módulo",{"$f":"'[1]MC MODULO'!N22","v":78}]
[3,"Codevasf","Composição Própria","Placa de Obra em Chapa de Aço Galvanizado",null,null,null,"und",{"$f":"I12","v":78}]
[null,null,null,"TERRAPLENAGEM"]
[4,"Codevasf","Composição Própria","serviços topográficos para pavimentação, inclusive notas de serviços, acompanhamento e greide",null,null,null,"m²",{"$f":"'[1]MC MODULO'!P29","v":546000}]
[5,"SICRO",5502114,"Escavação, carga e transporte de material de 1ª categoria - DMT de 1.000 a 1.200 m - caminho de serviço em leito natural - com escavadeira e caminhão basculante de 14 m³",null,null,null,"m³",{"$f":"'[1]MC MODULO'!R34","v":54600}]
[6,"SICRO",4413942,"Espalhamento de material em bota-fora",null,null,null,"m³",{"$f":"'[1]MC MODULO'!R41","v":54600}]
[null,null,null,"PAVIMENTAÇÃO"]
[7,"SINAPI",92394,"Execução de Pavimento em Piso Intertravado, com Bloco Sextavado de 25 X 25 cm, espessura 8 cm. AF_12/2015",null,null,null,"m²",{"$f":"'[1]MC MODULO'!P49","v":546000}]
[8,"SICRO",4011276,"Base ou sub-base de brita graduada com brita comercial",null,null,null,"m³",{"$f":"'[1]MC MODULO'!R55","v":81900}]
[9,"SICRO",4011209,"Regularização do subleito",null,null,null,"m²",{"$f":"'[1]MC MODULO'!R61","v":546000}]
[null,null,null,"SINALIZAÇÃO"]
[10,"SICRO",5213440,"Fornecimento e implantação de placa de regulamentação em aço D = 0,60 m - película retrorrefletiva tipo I + SI",null,null,null,"und",{"$f":"'[1]MC MODULO'!R69","v":39}]
[11,"SICRO",5213863,"Suporte metálico galvanizado para placa de advertência ou regulamentação - lado ou diâmetro de 0,60 m - fornecimento e\nimplantação",null,null,null,"und",{"$f":"'[1]MC MODULO'!R75","v":39}]
[null,null,null,"DRENAGEM"]
[12,"SICRO",2003373,"Meio fio de concreto - MFC 03 - areia e brita comerciais - fôrma de madeira",null,null,null,"m",{"$f":"'[1]MC MODULO'!R82","v":156000}]
[null,null,null,"LIMPEZA GERAL"]
[13,"Codevasf","Composição Própria","Limpeza Geral",null,null,null,"m²",{"$f":"'[1]MC MODULO'!R90","v":546000}]
[null,null,null,"SERVIÇOS COMPLEMENTARES"]
[14,"Codevasf","Composição Própria","Conserto de quebra no ramal na rua sem pavimento com fornecimento de material hidráulico",null,null,null,"m",{"$f":"'[1]MC MODULO'!R97","v":7800}]
[null,null,null,"PROJETO EXECUTIVO"]
[15,"Codevasf","Composição Própria","Projeto Executivo",null,null,null,"km",{"$f":"'[1]MC MODULO'!R104","v":78}]
["VALOR TOTAL DO SRP"]

{"sheet":"CRONOGRAMA TOTAL","index":1,"n_rows":27,"n_cols":15,"rows_kept":27,"cut":false,"hidden":false,"merged":[[1,0,1,14],[2,0,2,14],[21,0,21,1],[22,0,22,1],[23,0,23,1],[24,0,24,1]]}
[]
[{"$f":"'RESUMO MODULO MINIMO'!$A$5","v":"EXECUÇÃO DE SERVIÇOS DE IMPLANTAÇÃO DE PAVIMENTAÇÃO EM BLOCO DE CONCRETO INTERTRAVADO, EM VIAS URBANAS E RURAIS DE MUNÍCIPIOS DIVERSOS INSERIDOS NA ÁREA DE ATUAÇÃO DA CODEVASF, NO ESTADO DO GOIÁS"}]
["Cronograma Físico e Financeiro "]
["Item","Descrição","Total Por Etapa","30 DIAS","60 DIAS","90 DIAS","120 DIAS","150 DIAS","180 DIAS","210 DIAS","240 DIAS","270 DIAS","300 DIAS","330 DIAS","360 DIAS"]
[null,{"$f":"'RESUMO MODULO MINIMO'!$D$10","v":"MOBILIZAÇÃO"}]
[]
[null,{"$f":"'RESUMO MODULO MINIMO'!D14","v":"TERRAPLENAGEM"}]
[]
[null,{"$f":"'RESUMO MODULO MINIMO'!$D$18","v":"PAVIMENTAÇÃO"}]
[]
[null,{"$f":"'RESUMO MODULO MINIMO'!$D$22","v":"SINALIZAÇÃO"}]
[]
[null,{"$f":"'RESUMO MODULO MINIMO'!$D$25","v":"DRENAGEM"}]
[]
[null,{"$f":"'RESUMO MODULO MINIMO'!$D$27","v":"LIMPEZA GERAL"}]
[]
[null,{"$f":"'RESUMO MODULO MINIMO'!D29","v":"SERVIÇOS COMPLEMENTARES"}]
[]
[null,{"$f":"'RESUMO MODULO MINIMO'!$D$31","v":"PROJETO EXECUTIVO"}]
[]
[]
["Porcentagem"]
["Custo"]
["Porcentagem Acumulado"]
["Custo Acumulado"]
[]
[null,null,null,"Total Geral",{"$nulls":9},"R$",{"$f":"'RESUMO MODULO TOTAL'!L33","v":0}]

{"sheet":"RESUMO MODULO MINIMO","index":2,"n_rows":33,"n_cols":12,"rows_kept":33,"cut":false,"hidden":false,"merged":[[31,3,31,6],[32,0,32,9],[21,3,21,6],[22,3,22,6],[23,3,23,6],[25,3,25,6],[27,3,27,6],[29,3,29,6],[15,3,15,6],[16,3,16,6],[17,3,17,6],[18,3,18,6],[19,3,19,6],[20,3,20,6],[9,3,9,6],[10,3,10,6],[11,3,11,6],[12,3,12,6],[13,3,13,6],[14,3,14,6],[3,2,3,9],[4,0,4,11],[5,0,8,0],[5,1,8,1],[5,2,8,2],[5,3,8,6],[6,8,7,8],[6,11,7,11]]}
["EXECUÇÃO DE SERVIÇOS DE IMPLANTAÇÃO DE PAVIMENTAÇÃO EM BLOCO DE CONCRETO INTERTRAVADO, EM VIAS URBANAS E RURAIS DE MUNÍCIPIOS DIVERSOS INSERIDOS NA ÁREA DE ATUAÇÃO DA CODEVASF, NO ESTADO DO GOIÁS",{"$nulls":8},"Extensão (km)"]
[]
[]
[null,null,"MÓDULO MÍNIMO"]
[{"$f":"A1","v":"EXECUÇÃO DE SERVIÇOS DE IMPLANTAÇÃO DE PAVIMENTAÇÃO EM BLOCO DE CONCRETO INTERTRAVADO, EM VIAS URBANAS E RURAIS DE MUNÍCIPIOS DIVERSOS INSERIDOS NA ÁREA DE ATUAÇÃO DA CODEVASF, NO ESTADO DO GOIÁS"}]
["ITEM","ORIGEM\nCOMPOSIÇÃO","CÓDIGO\nCOMPOSIÇÃO","DISCRIMINAÇÃO DOS SERVIÇOS",null,null,null,"BDI %:",null,"R$/m²",null,"PERCENTUAL DE RISCO"]
[{"$nulls":7},"Total de m²","Encargos Sociais:","Horista","Mensalista"]
[{"$nulls":7},{"$f":"I15","v":7000}]
[{"$nulls":7},"UND","QTDE.","PREÇO UNITÁRIO COM BDI COM RISCO 0 (R$)","PREÇO TOTAL COM BDI RISCO 0 (R$)","PREÇO TOTAL COM CONTINGÊNCIA (R$)"]
[null,null,null,"MOBILIZAÇÃO"]
[1,"Codevasf","Composição Própria","Implantação da Obra",null,null,null,"Módulo",{"$f":"'[1]MC MODULO'!$D$17","v":1}]
[2,"Codevasf","Composição Própria","Administração da Obra",null,null,null,"Módulo",{"$f":"'[1]MC MODULO'!$D$22","v":1}]
[3,"Codevasf","Composição Própria","Placa de Obra em Chapa de Aço Galvanizado",null,null,null,"und",1]
[null,null,null,"TERRAPLENAGEM"]
[4,"Codevasf","Composição Própria","serviços topográficos para pavimentação, inclusive notas de serviços, acompanhamento e greide",null,null,null,"m²",{"$f":"'[1]MC MODULO'!F29","v":7000}]
[5,"SICRO",5502114,"Escavação, carga e transporte de material de 1ª categoria - DMT de 1.000 a 1.200 m - caminho de serviço em leito natural - com escavadeira e caminhão basculante de 14 m³",null,null,null,"m³",{"$f":"'[1]MC MODULO'!$H$34","v":700}]
[6,"SICRO",4413942,"Espalhamento de material em bota-fora",null,null,null,"m³",{"$f":"'[1]MC MODULO'!$H$41","v":700}]
[null,null,null,"PAVIMENTAÇÃO"]
[7,"SINAPI",92394,"Execução de Pavimento em Piso Intertravado, com Bloco Sextavado de 25 X 25 cm, espessura 8 cm. AF_12/2015",null,null,null,"m²",{"$f":"'[1]MC MODULO'!$F$49","v":7000}]
[8,"SICRO",4011276,"Base ou sub-base de brita graduada com brita comercial",null,null,null,"m³",{"$f":"'[1]MC MODULO'!$H$55","v":1050}]
[9,"SICRO",4011209,"Regularização do subleito",null,null,null,"m²",{"$f":"'[1]MC MODULO'!$H$61","v":7000}]
[null,null,null,"SINALIZAÇÃO"]
[10,"SICRO",5213440,"Fornecimento e implantação de placa de regulamentação em aço D = 0,60 m - película retrorrefletiva tipo I + SI",null,null,null,"und",{"$f":"'[1]MC MODULO'!$H$69","v":0.5}]
[11,"SICRO",5213863,"Suporte metálico galvanizado para placa de advertência ou regulamentação - lado ou diâmetro de 0,60 m - fornecimento e\nimplantação",null,null,null,"und",{"$f":"'[1]MC MODULO'!$H$75","v":0.5}]
[null,null,null,"DRENAGEM"]
[12,"SICRO",2003373,"Meio fio de concreto - MFC 03 - areia e brita comerciais - fôrma de madeira",null,null,null,"m",{"$f":"'[1]MC MODULO'!$H$82","v":2000}]
[null,null,null,"LIMPEZA GERAL"]
[13,"Codevasf","Composição Própria","Limpeza Geral",null,null,null,"m²",{"$f":"'[1]MC MODULO'!$H$90","v":7000}]
[null,null,null,"SERVIÇOS COMPLEMENTARES"]
[14,"Codevasf","Composição Própria","Conserto de quebra no ramal na rua sem pavimento com fornecimento de material hidráulico",null,null,null,"m",{"$f":"'[1]MC MODULO'!H97","v":100}]
[null,null,null,"PROJETO EXECUTIVO"]
[15,"Codevasf","Composição Própria","Projeto Executivo",null,null,null,"km",{"$f":"'[1]MC MODULO'!$H$104","v":1}]
["VALOR TOTAL DO SRP"]

{"sheet":"CRONOGRAMA MINIMO","index":3,"n_rows":28,"n_cols":15,"rows_kept":28,"cut":false,"hidden":false,"merged":[[25,0,25,1],[1,0,1,14],[2,0,2,14],[3,0,3,14],[22,0,22,1],[23,0,23,1],[24,0,24,1]]}
[]
["MÓDULO MÍNIMO"]
[{"$f":"'RESUMO MODULO MINIMO'!$A$5","v":"EXECUÇÃO DE SERVIÇOS DE IMPLANTAÇÃO DE PAVIMENTAÇÃO EM BLOCO DE CONCRETO INTERTRAVADO, EM VIAS URBANAS E RURAIS DE MUNÍCIPIOS DIVERSOS INSERIDOS NA ÁREA DE ATUAÇÃO DA CODEVASF, NO ESTADO DO GOIÁS"}]
["Cronograma Físico e Financeiro "]
["Item","Descrição","Total Por Etapa","30 DIAS","60 DIAS","90 DIAS","120 DIAS","150 DIAS","180 DIAS","210 DIAS","240 DIAS","270 DIAS","300 DIAS","330 DIAS","360 DIAS"]
[null,{"$f":"'RESUMO MODULO MINIMO'!$D$10","v":"MOBILIZAÇÃO"}]
[]
[null,{"$f":"'RESUMO MODULO MINIMO'!D14","v":"TERRAPLENAGEM"}]
[]
[null,{"$f":"'RESUMO MODULO MINIMO'!$D$18","v":"PAVIMENTAÇÃO"}]
[]
[null,{"$f":"'RESUMO MODULO MINIMO'!$D$22","v":"SINALIZAÇÃO"}]
[]
[null,{"$f":"'RESUMO MODULO MINIMO'!$D$25","v":"DRENAGEM"}]
[]
[null,{"$f":"'RESUMO MODULO MINIMO'!$D$27","v":"LIMPEZA GERAL"}]
[]
[null,{"$f":"'RESUMO MODULO MINIMO'!D29","v":"SERVIÇOS COMPLEMENTARES"}]
[]
[null,{"$f":"'RESUMO MODULO MINIMO'!$D$31","v":"PROJETO EXECUTIVO"}]
[]
[]
["Porcentagem"]
["Custo"]
["Porcentagem Acumulado"]
["Custo Acumulado"]
[]
[null,null,null,"Total Geral",{"$nulls":9},"R$"]

{"sheet":"Mob e Desmob","index":4,"n_rows":32,"n_cols":9,"rows_kept":32,"cut":false,"hidden":false,"merged":[[19,0,19,1],[29,0,29,1],[30,0,30,3],[31,0,31,3],[11,0,11,1],[12,0,12,1],[13,0,13,1],[14,0,14,1],[15,0,15,3],[16,0,16,3],[1,0,1,13],[2,0,2,13],[3,0,3,13],[4,0,4,13],[6,0,7,13],[9,0,9,1]]}
[]
[]
[]
[]
[{"$f":"'RESUMO MODULO MINIMO'!A1","v":"EXECUÇÃO DE SERVIÇOS DE IMPLANTAÇÃO DE PAVIMENTAÇÃO EM BLOCO DE CONCRETO INTERTRAVADO, EM VIAS URBANAS E RURAIS DE MUNÍCIPIOS DIVERSOS INSERIDOS NA ÁREA DE ATUAÇÃO DA CODEVASF, NO ESTADO DO GOIÁS"}]
[]
["MEMÓRIA DE CÁLCULO DOS MOMENTOS DE TRANSPORTE PARA MOBILIZAÇÃO E DESMOBILIZAÇÃO"]
[]
[]
["Deslocamento:"]
[null,null,"Distancia méd. (Km)","Qtde. ","Total (Km)"]
["Mobilização (entre os trechos de serviço):",null,1,1,{"$f":"C12*D12","v":1}]
["Desmobilização   (entre os trechos de serviço):",null,1,1,{"$f":"C13*D13","v":1}]
["Mobilização inter-municipal (entre as localidades):",null,10,1,{"$f":"C14*D14","v":10}]
["Desmobilização   inter-municipal (entre as localidades):",null,10,1,{"$f":"C15*D15","v":10}]
["Mobilização - Total (km)",null,null,null,{"$f":"E12+E14","v":11}]
["Desmobilização - Total (km)",null,null,null,{"$f":"E13+E15","v":11}]
[]
[]
["Peso das máquinas:"]
[{"$nulls":4},"Pá carregadeira ",null,null,null," ton"]
[{"$nulls":4},"Motoniveladora ",null,null,null," ton"]
[{"$nulls":4},"Trator de pneus",null,null,null," ton"]
[{"$nulls":4},"Rolo Compactador ",null,null,null," ton"]
[{"$nulls":4},"Grade de disco",null,null,null," ton"]
[{"$nulls":4},"Usina misturadora",null,null,null," ton"]
[]
[{"$nulls":4},"Total",null,null,null," ton"]
[]
["Portanto:","Portanto"]
["Mobilização - Total (km)",null,null,null,{"$f":"E16*H28","v":0}," t x km"]
["Desmobilização - Total (km)",null,null,null,{"$f":"E17*H28","v":0}," t x km"]

{"sheet":"SERVIÇOS PRELI","index":5,"n_rows":24,"n_cols":9,"rows_kept":24,"cut":false,"hidden":false,"merged":[[20,1,20,4],[20,5,20,8],[23,0,23,4],[23,5,23,6],[15,0,15,8],[16,1,16,4],[16,5,16,8],[18,0,18,4],[18,5,18,6],[19,0,19,8],[8,0,8,8],[10,0,10,8],[11,1,11,4],[11,5,11,8],[14,0,14,4],[14,5,14,6],[0,0,2,8],[3,0,3,8],[4,0,6,4],[4,7,4,8],[5,5,6,6],[7,0,7,8]]}
[]
[]
[]
[{"$f":"'RESUMO MODULO MINIMO'!A1","v":"EXECUÇÃO DE SERVIÇOS DE IMPLANTAÇÃO DE PAVIMENTAÇÃO EM BLOCO DE CONCRETO INTERTRAVADO, EM VIAS URBANAS E RURAIS DE MUNÍCIPIOS DIVERSOS INSERIDOS NA ÁREA DE ATUAÇÃO DA CODEVASF, NO ESTADO DO GOIÁS"}]
[{"$nulls":6},"BDI %:"]
[{"$nulls":5},"Encargos Sociais:",null,"Horista","Mensalista"]
[]
["Anexo VI - Planilhas Orçamentárias"]
[]
["ITEM","CPUs","Fonte","Cód.","DISCRIMINAÇÃO DOS SERVIÇOS","UND","QTDE.","PREÇO UNITÁRIO (R$)","TOTAL"]
[]
[1,"IMPLANTAÇÃO DA OBRA"]
["1.1","SERVIÇOS INICIAIS"]
["1.1.1","CPU-02","CODEVASF",72840,"MOBILIZAÇÃO E DESMOBILIZAÇÃO","und",1]
[{"$nulls":5}," ITEM 1:",null,"TOTAL"]
[]
[2,"PLACA DE OBRA EM CHAPA DE ACO GALVANIZADO"]
["2.1","CPU-01","CODEVASF","74209/1","PLACA DE OBRA EM CHAPA DE ACO GALVANIZADO","und",1]
[{"$nulls":5}," ITEM 1:",null,"TOTAL"]
[]
[3,"ADMINISTRAÇÃO DA OBRA"]
["3.1","CPU-03","CODEVASF","2.1","ADMINISTRAÇÃO LOCAL","%",1]
["3.2","CPU-04","CODEVASF","2.2","CANTEIRO DE OBRAS E ALMOXARIFADO","MÊS",1]
[{"$nulls":5}," ITEM 2:",null,"TOTAL"]

{"sheet":"Projeto Executivo","index":6,"n_rows":33,"n_cols":7,"rows_kept":33,"cut":false,"hidden":false,"merged":[[29,0,29,1],[30,0,30,1],[31,0,31,1],[32,0,32,1],[22,0,22,1],[23,0,23,1],[24,0,24,1],[25,0,25,1],[26,0,26,1],[28,0,28,1],[1,0,1,6],[2,2,4,4],[3,0,3,1],[14,0,14,1],[19,0,19,1],[21,0,21,1]]}
[]
["COMPOSIÇÃO PREÇO PROJETO EXECUTIVO (POR KM)"]
[]
["DISCRIMINAÇÃO",{"$nulls":4},"Pr. Unit.","Pr. Total"]
[]
["A· EQUIPE TÉCNICA"]
[null,"A. 1 - Pessoal de Nível Superior","Unidade","Quantitativo","Código SINAPI"]
[null,"Engenheiro","h",20,34780]
[null,"Topógrafo","h",10,7592]
[null,"A.2 - Pessoal de Nível Técnico e Aux."]
[null,"Auxiliar de topógrafo","h",10,244]
[null,"Cadista/calculista","h",20,2359]
["B - ENCARGOS SOCIAIS"]
[null,"Taxas 72,23 % do item \"A\""]
["C - DESPESAS GERAIS"]
[null,"C.1 - MATERIAIS DE CONSUMO","Estimativa % como referência de equipe técnica com encargos sociais ",0.03]
[null,"C.2 - VEÍCULOS","H",8,92144]
[null,"C.3 - COMBUSTÍVEL","L",2,4221]
[null,"C.3 - EQUIPAMENTOS, INSTALAÇÕES E MOBILIÁRIO","H",16,7247]
["D - ENSAIOS"]
[null,"D.1 - ENSAIOS","Composição Ensaios"]
["I - SOMA (A+B+C+D)"]
["II - CUSTOS ADMINISTRATIVOS (22,57 %)",null,null,{"$f":"[2]BDI!K22","v":0.22572947174313907}]
["II - SOMA"]
["VI - RELATÓRIOS",null,"Estimativa % como referência soma II",2.5000000000000001E-2]
["V - DESPESAS DIRETAS (3,74%)",null,"Percentual VI",3.7400000000000003E-2]
["VI - REMUNERAÇÃO DA EMPRESA"]
[null,"Taxas 4,75%",null,4.7500000000000001E-2]
["VII - CONTINGÊNCIAS",null,null,5.7700000000000001E-2]
["VIII - SOMA"]
["IX - CUSTOS ADMINISTRATIVOS (22,57 %)",null,null,{"$f":"D23","v":0.22572947174313907}]
["III - SOMA"]
["X - TOTAL"]

{"sheet":"Ensaios","index":7,"n_rows":23,"n_cols":6,"rows_kept":23,"cut":false,"hidden":false,"merged":[[19,0,19,4],[20,0,20,3],[21,0,21,3],[22,0,22,3],[0,0,1,5],[2,0,2,5],[3,0,3,5],[4,0,4,2],[4,3,4,4],[5,0,5,2],[5,3,5,4]]}
["SERVIÇOS GEOLÓGICOS/GEOTÉCNICOS"]
[]
["NOME DA EMPRESA:"]
[]
["PROJETO:",null,null,"CONTRATANTE:",null,"EDITAL:"]
[null,null,null,"Codevasf (Sede)"]
["Cod.","Insumos","Uni","Qde","Preço Unitário (PU)","Preço Total (PT)"]
["GT01","Ensaios em solos Umidade Natural ","un",1]
["GT02","Densidade in situ - Frasco de Areia (in Situ)","un",1]
["GT03","Ensaios em solos Limite de Liquidez","un",1]
["GT04","Ensaios em solos Limite de Plasticidade","un",1]
["GT05","Granulometria por Peneiramento","un",1]
["GT06","Granulometria Completa (peneiramento e sedimentação)","un",1]
["GT07","Massa Específica Real dos Grãos","un",1]
["GT08","Compactação Proctor Normal","un",2]
["GT09","Abrasão \"Los Angeles\"","un",1]
["GT10","Índice de Suporte Califórnia (ISC/CBR)","un",5]
["GT11","Equivalente de Areia","un",1]
["GT12","Ensaio de Expansão","un",1]
["TOTAL SERVIÇOS GEOTÉCNICOS"]
["NOME DO INFORMANTE:",null,null,null,"QUALIFICAÇÃO:"]
[]
["ASSINATURA:",null,null,null,"DATA:"]

{"sheet":"CPU CODEVASF","index":8,"n_rows":90,"n_cols":8,"rows_kept":90,"cut":false,"hidden":false,"merged":[[78,5,79,5],[78,6,79,6],[78,7,79,7],[86,4,86,6],[89,5,89,6],[66,6,67,6],[66,7,67,7],[73,4,73,6],[76,5,76,6],[77,5,77,6],[78,0,79,0],[78,1,79,1],[78,2,79,2],[78,3,79,3],[78,4,79,4],[59,6,60,6],[59,7,60,7],[62,4,62,6],[65,5,65,6],[66,0,67,0],[66,1,67,1],[66,2,67,2],[66,3,67,3],[66,4,67,4],[66,5,67,5],[50,6,51,6],[50,7,51,7],[54,4,54,6],[57,5,57,6],[59,0,60,0],[59,1,60,1],[59,2,60,2],[59,3,60,3],[59,4,60,4],[59,5,60,5],[50,0,51,0],[50,1,51,1],[50,2,51,2],[50,3,51,3],[50,4,51,4],[50,5,51,5],[37,6,38,6],[37,7,38,7],[45,4,45,6],[46,4,46,6],[47,4,47,6],[48,5,48,6],[25,6,26,6],[25,7,26,7],[32,4,32,6],[35,5,35,6],[37,0,38,0],[37,1,38,1],[37,2,38,2],[37,3,38,3],[37,4,38,4],[37,5,38,5],[8,6,9,6],[8,7,9,7],[20,4,20,6],[23,5,23,6],[25,0,26,0],[25,1,26,1],[25,2,26,2],[25,3,26,3],[25,4,26,4],[25,5,26,5],[8,0,9,0],[8,1,9,1],[8,2,9,2],[8,3,9,3],[8,4,9,4],[8,5,9,5],[0,0,2,7],[3,0,3,7],[4,0,6,3],[4,6,4,7],[5,4,6,5],[7,0,7,7]]}
[]
[]
[]
[{"$f":"'RESUMO MODULO MINIMO'!A1","v":"EXECUÇÃO DE SERVIÇOS DE IMPLANTAÇÃO DE PAVIMENTAÇÃO EM BLOCO DE CONCRETO INTERTRAVADO, EM VIAS URBANAS E RURAIS DE MUNÍCIPIOS DIVERSOS INSERIDOS NA ÁREA DE ATUAÇÃO DA CODEVASF, NO ESTADO DO GOIÁS"}]
[{"$nulls":5},"BDI %:"]
[{"$nulls":4},"Encargos Sociais:",null,"Horista","Mensalista"]
[]
["COMPOSIÇÕES DE CUSTO UNITARIO"]
["CPU-01","CODEVASF","74209/1","PLACA DE OBRA EM CHAPA DE ACO GALVANIZADO","M2","COEF.","PRECO UNITÁRIO (R$)","TOTAL (R$)"]
[]
["INS. SINAPI","SINAPI",5075,"PREGO 18X30.","kg",0.11]
["INS. SINAPI","SINAPI",4491,"PECA DE MADEIRA NATIVA / REGIONAL 7,5 X 7,5CM (3X3) NAO APARELHADA (P/FORMA)","m",4]
["INS. SINAPI","SINAPI",4417,"PECA DE MADEIRA DE LEI *2,5 X 7,5* CM (1\" X 3\"), NÃO APARELHADA, (P/TELHADO)","m",1]
["INS. SINAPI","SINAPI",4813,"PLACA DE OBRA (PARA CONSTRUCAO CIVIL) EM CHAPA GALVANIZADA *Nº 22*, DE *2,0 X 1,125* M","m²",1]
["INS. SINAPI","SINAPI",370,"AREIA MÉDIA","m³",4.8999999999999998E-3]
["INS. SINAPI","SINAPI",1379,"CIMENTO PORTLAND COMPOSTO CP II-32      ","kg",1.5]
["INS. SINAPI","SINAPI",4718,"PEDRA BRITADA Nº 2","m³",9.7999999999999997E-3]
["COMP. SINAPI","SINAPI",87445,"BETONEIRA CAPACIDADE NOMINAL 400 L, CAPACIDADE DE MISTURA 310 L, MOTOR A DIESEL POTÊNCIA 5,0 HP, SEM CARREGADOR MECANICO (LOCACAO)","h",6.4999999999999997E-3]
["COMP. SINAPI","SINAPI",88262,"CARPINTEIRO DE FORMAS COM ENCARGOS COMPLEMENTARES","h",1]
["COMP. SINAPI","SINAPI",88316,"SERVENTE COM ENCARGOS COMPLEMENTARES","h",2.06]
[{"$nulls":4},"Sub total:"]
[{"$nulls":5},"BDI "]
[{"$nulls":6},"Total Serviços:"]
[{"$nulls":4},{"$f":"A9","v":"CPU-01"},"PREÇO UNITÁRIO TOTAL:"]
[]
["CPU-02","CODEVASF","Propria","MOBILIZAÇÃO E DESMOBILIZAÇÃO","T X KM","COEF.","PRECO UNITÁRIO (R$)","TOTAL (R$)"]
[]
["COMP. SINAPI","SINAPI",73340,"CAMINHÃO TOCO, PBT 14.300 KG, CARGA ÚTIL MÁX. 9.710 KG, DIST. ENTRE EIXOS 3,56 M, POTÊNCIA 185 CV, INCLUSIVE CARROCERIA FIXA ABERTA DE MADEIRA P/ TR ANSPORTE GERAL DE CARGA SECA, DIMEN. APROX. 2,50 X 6,50 X 0,50 M - MATERIA IS NA OPERAÇÃO. AF_06/2014","H",2]
["COMP. SINAPI","SINAPI",67826,"CAMINHÃO BASCULANTE 6 M3 TOCO, PESO BRUTO TOTAL 16.000 KG, CARGA ÚTIL MÁXI CHP MA 11.130 KG, DISTÂNCIA ENTRE EIXOS 5,36 M, POTÊNCIA 185 CV, INCLUSIVE CAÇAMBA METÁLICA - CHP DIURNO. AF_06/2014","CHP",2]
["COMP. SINAPI","SINAPI",6259,"CAMINHÃO PIPA 6.000 L, PESO BRUTO TOTAL 13.000 KG, DISTÂNCIA ENTRE EIXOS 4 CHP ,80 M, POTÊNCIA 189 CV INCLUSIVE TANQUE DE AÇO PARA TRANSPORTE DE ÁGUA, CAPACIDADE 6 M3 - CHP DIURNO. AF_06/2014","CHP",2]
["COMP. SICRO","SICRO",5914640,"TRANSPORTE COM CAVALO MECÂNICO COM SEMIRREBOQUE COM CAPACIDADE DE 30 T - RODOVIA PAVIMENTADA","T x km",{"$f":"'Mob e Desmob'!E31","v":0}]
["INSUMO","ORSE",5896,"VEÍCULO TIPO SEDAN OU PICK-UP CAPACIDADE 0,6 TON","h",3]
[{"$nulls":4},"Sub total:"]
[{"$nulls":5},"BDI "]
[{"$nulls":6},"Total Serviços:"]
[{"$nulls":4},{"$f":"A26","v":"CPU-02"},"PREÇO UNITÁRIO TOTAL:"]
[]
["CPU-03","CODEVASF",null,"ADMINISTRAÇÃO LOCAL","%","COEF.","PRECO UNITÁRIO (R$)","TOTAL (R$)"]
[]
["COMP. SINAPI","SINAPI",90777,"ENGENHEIRO CIVIL DE OBRA JUNIOR COM ENCARGOS COMPLEMENTARES","H",20]
["COMP. SINAPI","SINAPI",90780,"MESTRE DE OBRAS COM ENCARGOS COMPLEMENTARES","H",40]
["COMP. SINAPI","SINAPI",90772,"AUXILIAR DE ESCRITORIO COM ENCARGOS COMPLEMENTARES","H",40]
["INS. SINAPI","SINAPI",14250,"ENERGIA","KW/H",100]
["INS. SINAPI","SINAPI",14583,"ÁGUA TARIFA \"A\" ENTRE 0 E 20M3 FORNECIMENTO D'AGUA","M3",1]
["INSUMO","ORSE",4415,"VEÍCULO LEVE - VOLKSWAGEN:GOL 1000 - AUTOMÓVEL ATÉ 100 HP","H",40]
[{"$nulls":4},"ADM. LOCAL :"]
[{"$nulls":4},"Total para 6 meses:"]
[]
[{"$nulls":4},{"$f":"A38","v":"CPU-03"},"PREÇO TOTAL:"]
[]
["CPU-04","CODEVASF",null,"CANTEIRO DE OBRAS E ALMOXARIFADO","MÊS","COEF.","PRECO UNITÁRIO (R$)","TOTAL (R$)"]
[]
["INS. SINAPI","SINAPI",10775,"LOCAÇÃO DE CONTAINER - ESCRITÓRIO COM BANHEIRO - 6,20 X 2,20M","mês",0.2]
["COMP. ORSE","ORSE",4299,"ALUGUEL DE CONTAINER - ALMOXARIFADO SEM BANHEIRO - 6,00 X 2,40M","mês",0.2]
[{"$nulls":4},"Sub total:"]
[{"$nulls":5},"BDI "]
[{"$nulls":6},"Total Serviços:"]
[{"$nulls":4},{"$f":"A51","v":"CPU-04"},"PREÇO UNITÁRIO TOTAL:"]
[]
["CPU-11","CODEVASF",null,"LIMPEZA GERAL","UNID","COEF.","PRECO UNITÁRIO (R$)","TOTAL (R$)"]
[]
["COMP. SINAPI","SINAPI",88316,"SERVENTE COM ENCARGOS COMPLEMENTARES","H",0.05]
[{"$nulls":4},"Sub total:"]
[{"$nulls":5},"BDI"]
[{"$nulls":6},"Total Serviços:"]
[{"$nulls":4},{"$f":"A60","v":"CPU-11"},"PREÇO UNITÁRIO TOTAL:"]
["CPU-12","CODEVASF",null,"Correção de vazamentos no ramal na rua sem pavimento com fornecimento do material hidráulico","UNID","COEF.","PRECO UNITÁRIO (R$)","TOTAL (R$)"]
[]
["Composição Auxiliar","SINAPI",88316,"SERVENTE COM ENCARGOS COMPLEMENTARES","H",0.2]
["Composição Auxiliar","SINAPI",88267,"ENCANADOR OU BOMBEIRO HIDRÁULICO COM ENCARGOS COMPLEMENTARES","H",0.1]
["Insumo","SINAPI",9867,"TUBO PVC, SOLDAVEL, DN 20 MM, AGUA FRIA (NBR-5648)","m",1]
["Insumo","ORSE",10585,"Arco de serra","un",0.1]
["Insumo","SINAPI",3859,"LUVA SOLDAVEL COM ROSCA, PVC, 20 MM X 1/2\", PARA AGUA FRIA PREDIAL","un",2]
[{"$nulls":4},"Sub total:"]
[{"$nulls":5},"BDI"]
[{"$nulls":6},"Total Serviços:"]
[{"$nulls":4},{"$f":"A67","v":"CPU-12"},"PREÇO UNITÁRIO TOTAL:"]
[]
["CPU-13","CODEVASF",null,"SERVIÇOS TOPOGRÁFICOS PARA PAVIMENTAÇÃO, INCLUSIVE NOTAS DE SERVIÇOS, ACOMPANHAMENTO E GREIDE","UNID","COEF.","PRECO UNITÁRIO (R$)","TOTAL (R$)"]
[]
["Insumo","SINAPI",20206,{"$f":"VLOOKUP(C81,'[1]INSUMOS SINAPI'!A:E,2,0)","v":"SARRAFO APARELHADO *2 X 10* CM, EM MACARANDUBA, ANGELIM OU EQUIVALENTE DA REGIAO"},"m",2.8860000000000001E-3]
["Composição","SINAPI",88253,{"$f":"VLOOKUP(C82,'[1]COMP Sint. Sinapi'!A:F,2,0)","v":"AUXILIAR DE TOPÓGRAFO COM ENCARGOS COMPLEMENTARES"},"h",2.5000000000000001E-3]
["Composição","SINAPI",88288,{"$f":"VLOOKUP(C83,'[1]COMP Sint. Sinapi'!A:F,2,0)","v":"NIVELADOR COM ENCARGOS COMPLEMENTARES"},"h",2.5000000000000001E-3]
["Composição","SINAPI",88316,{"$f":"VLOOKUP(C84,'[1]COMP Sint. Sinapi'!A:F,2,0)","v":"SERVENTE COM ENCARGOS COMPLEMENTARES"},"h",7.4999999999999997E-3]
["Composição","SINAPI",88597,{"$f":"VLOOKUP(C85,'[1]COMP Sint. Sinapi'!A:F,2,0)","v":"DESENHISTA DETALHISTA COM ENCARGOS COMPLEMENTARES"},"h",2E-3]
["Composição","SINAPI",92145,{"$f":"VLOOKUP(C86,'[1]COMP Sint. Sinapi'!A:F,2,0)","v":"CAMINHONETE CABINE SIMPLES COM MOTOR 1.6 FLEX, CÂMBIO MANUAL, POTÊNCIA 101/104 CV, 2 PORTAS - CHP DIURNO. AF_11/2015"},"chp",1E-3]
[{"$nulls":4},"Sub total:"]
[{"$nulls":5},"BDI"]
[{"$nulls":6},"Total Serviços:"]
[{"$nulls":4},{"$f":"A79","v":"CPU-13"},"PREÇO UNITÁRIO TOTAL:"]

{"sheet":"CPU SINAPI","index":9,"n_rows":17,"n_cols":7,"rows_kept":17,"cut":false,"hidden":false,"merged":[[16,3,16,5],[0,0,0,4],[1,0,1,1],[1,2,1,4],[2,0,2,4],[14,3,14,5],[15,3,15,4]]}
["SINAPI - SISTEMA NACIONAL DE PESQUISA DE CUSTOS E ÍNDICES DA CONSTRUÇÃO CIVIL",{"$nulls":4},"Localidade:","GO"]
["PCI.818.01 - COMPOSIÇÕES ATIVAS ANALÍTICAS COM CUSTO",null,"ABRANGENCIA: NACIONAL                                                                               DATA DE PREÇO          :   09/2021                                                                             ",null,null,"DATA de REFERENCIA"," 09/2021"]
["* Composições constantes nos Relatórios publicados de Composições Analíticas para as 27 Unidades da Federação"]
["MACROCLASSE.CLASSE.GRUPO","CÓDIGOS","DESCRIÇÃO","UNIDADE","COEFICIENTE","CADERNO TÉCNICO","PREÇO UNITÁRIO"]
["03.PAVI.INTE.004/001",92394,"EXECUÇÃO DE PAVIMENTO EM PISO INTERTRAVADO, COM BLOCO SEXTAVADO DE 25 X 25 CM, ESPESSURA 8 CM. AF_12/2015","M2",null,"Pavimento Intertravado",{"$f":"G17","v":0}]
["INSUMO",370,"AREIA MEDIA - POSTO JAZIDA/FORNECEDOR (RETIRADO NA JAZIDA, SEM TRANSPORTE)","M3","0,0568000"]
["INSUMO",712,"BLOQUETE/PISO INTERTRAVADO DE CONCRETO - MODELO SEXTAVADO / HEXAGONAL, 25 CM X 25 CM, E = 8 CM, RESISTENCIA DE 35 MPA (NBR 9781), COR NATURAL","M2","1,0174000"]
["INSUMO",4741,"PO DE PEDRA (POSTO PEDREIRA/FORNECEDOR, SEM FRETE)","M3","0,0064000"]
["COMPOSICAO",88260,"CALCETEIRO COM ENCARGOS COMPLEMENTARES","H","0,1853000"]
["COMPOSICAO",88316,"SERVENTE COM ENCARGOS COMPLEMENTARES","H","0,1853000"]
["COMPOSICAO",91277,"PLACA VIBRATÓRIA REVERSÍVEL COM MOTOR 4 TEMPOS A GASOLINA, FORÇA CENTRÍFUGA DE 25 KN (2500 KGF), POTÊNCIA 5,5 CV - CHP DIURNO. AF_08/2015","CHP","0,0055000"]
["COMPOSICAO",91278,"PLACA VIBRATÓRIA REVERSÍVEL COM MOTOR 4 TEMPOS A GASOLINA, FORÇA CENTRÍFUGA DE 25 KN (2500 KGF), POTÊNCIA 5,5 CV - CHI DIURNO. AF_08/2015","CHI","0,0872000"]
["COMPOSICAO",91283,"CORTADORA DE PISO COM MOTOR 4 TEMPOS A GASOLINA, POTÊNCIA DE 13 HP, COM DISCO DE CORTE DIAMANTADO SEGMENTADO PARA CONCRETO, DIÂMETRO DE 350 MM, FURO DE 1\" (14 X 1\") - CHP DIURNO. AF_08/2015","CHP","0,0135000"]
["COMPOSICAO",91285,"CORTADORA DE PISO COM MOTOR 4 TEMPOS A GASOLINA, POTÊNCIA DE 13 HP, COM DISCO DE CORTE DIAMANTADO SEGMENTADO PARA CONCRETO, DIÂMETRO DE 350 MM, FURO DE 1\" (14 X 1\") - CHI DIURNO. AF_08/2015","CHI","0,0792000"]
[null,null,null,"Sub total:"]
[null,null,null,"BDI",null,null,{"$f":"ROUND(G15*F16,2)","v":0}]
[null,null,null,"Total Serviços:",null,null,{"$f":"G15+G16","v":0}]